bitfinex/quotes_ETHUSD_20250720
["timestamp","ask_amount","ask_price","bid_price","bid_amount"]
[1753052632423,0.002,3739.4,3739.3,8.75331233]
[1753052640186,0.002,3739.4,3739.3,5.64151501]
[1753052640392,0.002,3739.4,3739.3,8.09949332]
[1753052640587,0.002,3739.4,3739.3,7.26939332]
[1753052640790,0.002,3739.4,3739.3,7.81939332]
[1753052641014,0.002,3739.4,3739.3,7.26939332]
[1753052641186,0.002,3739.4,3739.3,4.595096]
[1753052641381,0.002,3739.4,3739.3,5.145096]
[1753052641777,0.002,3739.4,3739.3,7.81939332]
[1753052641981,0.002,3739.4,3739.3,8.88836713]
[1753052642305,0.002,3739.4,3739.3,8.80487113]
[1753052642713,0.002,3739.4,3739.3,5.58057381]
[1753052642919,0.002,3739.4,3739.3,4.5016]
[1753052643483,0.002,3739.4,3739.3,0.1336]
[1753052643785,0.4478,3739.4,3739.3,0.1336]
[1753052643985,0.6321,3738.7,3737.6,0.7889]
[1753052644213,0.4458,3738.6,3737.7,4.367]
[1753052644398,0.4458,3738.6,3738.5,0.1336]
[1753052645586,0.6321,3739.1,3738.5,2.80845012]
[1753052645786,0.6341,3739.5,3738.8,2.67463167]
[1753052646014,0.002,3739.5,3739.3,0.1336]
[1753052646885,0.4478,3739.4,3739.3,0.1336]
[1753052647086,0.76019851,3739.4,3739.3,0.1336]
[1753052647317,0.4478,3739.4,3738.5,0.19883811]
[1753052647489,3.12202806,3739.4,3739.0,0.1336]
[1753052647684,0.4458,3739.3,3739.0,0.1336]
[1753052647904,0.4458,3739.2,3739.0,0.1336]
[1753052648301,0.4458,3739.1,3739.0,0.1336]
[1753052649690,0.002,3739.4,3739.0,0.1336]
[1753052649890,0.002,3739.4,3739.3,0.1336]
[1753052652630,0.4478,3739.4,3739.3,0.1336]
[1753052653126,0.76018257,3739.4,3739.3,0.1336]
[1753052654194,0.002,3739.4,3739.3,0.1336]
[1753052654695,0.002,3739.4,3739.3,4.01179732]
[1753052655030,0.002,3739.4,3739.3,1.36424297]
[1753052655334,0.002,3739.4,3739.3,4.03854029]
[1753052655934,0.002,3739.4,3739.3,4.58854029]
[1753052656230,0.002,3739.4,3739.3,5.31483262]
[1753052656901,0.002,3739.4,3739.3,9.65883262]
[1753052657103,1e-08,3739.5,3739.4,25.02013381]
[1753052657305,1e-08,3739.5,3739.4,19.08860378]
[1753052657505,1e-08,3739.5,3739.4,24.10443574]
[1753052657731,1e-08,3739.5,3739.4,17.11710874]
[1753052658239,1e-08,3739.5,3739.4,10.12885974]
[1753052658407,1e-08,3739.5,3739.4,14.47785974]
[1753052660042,1e-08,3739.5,3739.4,6.57885974]
[1753052660332,1e-08,3739.5,3739.4,8.29732581]
[1753052660515,1e-08,3739.5,3739.4,8.84732581]
[1753052660912,1e-08,3739.5,3739.4,11.84732581]
[1753052661235,1e-08,3739.5,3739.4,14.09739081]
[1753052661544,1e-08,3739.5,3739.4,11.84732581]
[1753052661736,1e-08,3739.5,3739.4,12.84634267]
[1753052662030,1e-08,3739.5,3739.4,13.39634267]
[1753052663023,1e-08,3739.5,3739.4,2.92331686]
[1753052663226,1e-08,3739.5,3739.4,0.08348759]
[1753052664324,0.44580001,3739.5,3739.4,0.08348759]
[1753052664932,3.7520543,3739.5,3739.4,0.08348759]
[1753052667008,6.7520543,3739.5,3739.4,0.08348759]
[1753052667208,2.67459098,3738.9,3738.2,0.20299621]
[1753052667409,2.67453563,3739.0,3738.3,0.08353152]
[1753052667607,2.67453563,3739.0,3738.4,0.08353152]
[1753052667811,2.67453563,3739.0,3738.0,7.03797875]
[1753052667812,2.67453563,3739.0,3738.5,0.08353152]
[1753052668025,3.13390539,3738.9,3738.6,0.08353152]
[1753052668223,3.13390539,3738.9,3738.7,0.08353152]
[1753052668444,2.67453704,3739.0,3738.8,0.08353152]
[1753052668642,2.67422581,3739.4,3738.9,0.08353152]
[1753052668817,0.63210001,3739.5,3739.0,0.08353152]
[1753052669006,3.30631009,3739.5,3739.1,0.08353152]
[1753052669211,0.4593,3739.4,3739.2,0.08353152]
[1753052669412,0.4593,3739.4,3739.3,0.08353152]
[1753052670215,3.13352581,3739.4,3739.3,0.08353152]
[1753052670645,0.4593,3739.4,3739.3,0.08353152]
[1753052671046,3.13352581,3739.4,3739.3,0.08353152]
[1753052671468,0.4593,3739.4,3739.3,0.08353152]
[1753052672751,3.13352581,3739.4,3739.3,0.08353152]
[1753052673914,6.76562581,3739.4,3739.3,0.08353152]
[1753052674114,2.67501111,3738.4,3737.9,0.001]
[1753052674344,4.9541,3738.4,3737.9,0.001]
[1753052675144,4.9551,3738.4,3737.9,0.001]
[1753052676134,0.6321,3738.4,3737.9,0.001]
[1753052676331,4.322,3738.5,3738.0,0.4316]
[1753052676583,0.6321,3738.8,3738.1,0.31356252]
[1753052676738,4.322,3739.0,3738.5,0.001]
[1753052678257,0.6321,3739.2,3738.5,0.001]
[1753052678435,4.9541,3739.2,3738.5,0.001]
[1753052679854,2.67446147,3739.1,3738.5,0.001]
[1753052680366,8.08779295,3739.2,3738.5,0.001]
[1753052680769,5.4134,3739.2,3738.5,0.001]
[1753052680972,1.0914,3739.2,3738.5,0.001]
[1753052681171,4.322,3739.1,3738.5,0.001]
[1753052681466,1.0914,3739.2,3738.5,0.001]
[1753052681636,4.322,3739.1,3738.5,0.001]
[1753052682265,4.322,3739.0,3738.5,0.001]
[1753052683155,4.322,3739.0,3738.9,0.1336]
[1753052685055,4.7813,3739.0,3738.9,0.1336]
[1753052685371,0.4593,3739.0,3738.9,0.1336]
[1753052685539,4.7813,3739.0,3738.9,0.1336]
[1753052685941,4.322,3739.0,3738.9,0.1336]
[1753052686280,4.7813,3739.0,3738.9,0.21712717]
[1753052686875,4.322,3739.0,3738.9,0.21712717]
[1753052687687,8.21866294,3739.0,3738.5,0.001]
[1753052687859,2.67465496,3738.8,3738.5,0.1346]
[1753052688060,2.67465496,3738.8,3738.5,0.001]
[1753052688061,5.67479805,3738.6,3738.5,0.001]
[1753052688252,5.67479805,3738.6,3737.9,0.001]
[1753052688253,2.67522739,3738.0,3737.9,0.001]
[1753052688447,7.62932739,3738.0,3737.9,0.001]
[1753052688650,8.22222739,3738.0,3737.9,0.001]
[1753052688892,0.1336,3738.0,3737.9,0.001]
[1753052689051,4.322,3738.0,3737.9,0.1346]
[1753052689250,7.45652739,3738.0,3737.9,0.1346]
[1753052689772,4.7813,3738.0,3737.9,0.1346]
[1753052690086,8.21937843,3738.0,3737.9,0.001]
[1753052691148,3.89737843,3738.0,3737.9,0.001]
[1753052691356,4.0914,3738.4,3737.9,0.001]
[1753052691650,4.322,3738.6,3738.3,0.1336]
[1753052691972,4.322,3738.6,3737.9,3.10789335]
[1753052691973,3.13372462,3739.2,3738.8,0.1336]
[1753052692157,3.3063457,3739.4,3738.5,0.1336]
[1753052692158,10.45576189,3739.1,3738.5,0.1336]
[1753052692365,0.6321,3739.4,3738.8,0.1336]
[1753052692366,0.34399457,3739.3,3738.8,0.1336]
[1753052692565,4.322,3739.2,3739.0,0.1336]
[1753052692881,1e-08,3739.5,3739.0,0.1336]
[1753052693063,4.322,3739.4,3739.0,0.1336]
[1753052693388,4.322,3739.4,3739.3,0.1336]
[1753052694061,5.4809105,3739.4,3739.3,0.1336]
[1753052695183,8.15513631,3739.4,3739.3,0.1336]
[1753052695419,2.67434243,3739.3,3739.0,0.1336]
[1753052695570,2.67437859,3739.2,3739.0,0.1336]
[1753052695771,6.99644037,3739.1,3739.0,0.1336]
[1753052695968,7.86183579,3739.1,3739.0,0.1336]
[1753052696286,10.86183579,3739.1,3739.0,0.1336]
[1753052696971,2.6747594,3738.7,3738.6,0.1336]
[1753052697174,4.321,3738.7,3738.6,0.1336]
[1753052698989,7.4426265,3738.7,3738.6,0.1336]
[1753052699202,4.321,3738.7,3738.6,0.1336]
[1753052699815,4.321,3739.2,3738.7,0.7893]
[1753052700040,4.321,3739.1,3738.7,0.7893]
[1753052700174,4.321,3739.1,3738.8,0.4681]
[1753052700379,4.321,3739.1,3738.7,0.7893]
[1753052700602,0.6321,3738.9,3738.5,0.001]
[1753052700806,3.30689805,3738.6,3738.5,1e-08]
[1753052701020,2.67522739,3738.0,3737.9,0.001]
[1753052701218,10.26375013,3738.0,3737.9,0.001]
[1753052701420,10.89585013,3738.0,3737.9,1e-08]
[1753052701579,11.34275013,3738.0,3737.9,1e-08]
[1753052701783,2.67580006,3737.2,3736.1,0.02]
[1753052702083,10.62790006,3737.2,3736.1,0.02]
[1753052702294,11.91298324,3737.2,3736.1,0.02]
[1753052702789,12.03932098,3737.2,3736.1,0.02]
[1753052703378,11.91298324,3737.2,3736.1,0.02]
[1753052703911,12.03653119,3737.2,3736.1,0.02]
[1753052704541,11.91298324,3737.2,3736.1,0.02]
[1753052704831,11.91298324,3737.2,3736.1,0.4881]
[1753052704832,6.75480006,3737.2,3736.1,0.4881]
[1753052704981,3.6321,3737.2,3736.4,0.7526]
[1753052705182,10.62890006,3737.2,3736.4,0.7526]
[1753052705617,7.9531,3737.2,3736.4,0.7526]
[1753052705831,7.9531,3737.2,3736.4,0.77936372]
[1753052706119,11.07580006,3737.2,3736.4,0.7526]
[1753052706321,11.07580006,3737.2,3736.1,0.4881]
[1753052706880,6.75480006,3737.2,3736.1,0.4881]
[1753052707127,10.62890006,3737.2,3736.1,0.4881]
[1753052707328,11.07580006,3737.2,3736.1,0.4881]
[1753052709835,11.20940006,3737.2,3736.5,0.1336]
[1753052710615,11.20940006,3737.2,3736.1,0.02]
[1753052712651,3.1336,3737.2,3736.6,0.765]
[1753052712866,4.75900876,3742.5,3736.1,0.02]
[1753052712867,0.1336,3739.7,3737.5,3.0]
[1753052713081,0.1336,3739.7,3737.1,0.78234143]
[1753052713082,0.1336,3739.7,3738.6,2.67473432]
[1753052713213,0.1336,3739.7,3738.3,0.55]
[1753052713409,0.1336,3739.7,3739.1,0.1336]
[1753052713649,0.1336,3739.7,3739.1,0.8198]
[1753052713819,0.14160631,3740.3,3739.4,0.1336]
[1753052713820,4.321,3739.6,3739.4,0.1336]
[1753052714348,0.1356,3740.1,3739.4,0.1336]
[1753052714548,4.32300001,3739.5,3739.4,0.6017]
[1753052714865,4.32400001,3739.5,3739.4,0.6017]
[1753052715009,1e-08,3739.5,3739.4,0.6017]
[1753052715214,4.32300001,3739.5,3739.4,0.6017]
[1753052715827,1e-08,3739.5,3739.4,0.6017]
[1753052716031,1e-08,3739.5,3739.4,0.1336]
[1753052716243,1e-08,3739.5,3738.6,0.7713]
[1753052716446,1e-08,3739.5,3739.2,0.1336]
[1753052716818,0.4469,3739.4,3738.6,0.7713]
[1753052717024,0.4469,3739.4,3738.5,0.1336]
[1753052717025,0.1336,3739.2,3738.5,0.1336]
[1753052717251,4.32,3739.1,3738.5,0.1336]
[1753052717516,0.1336,3738.7,3738.1,0.1336]
[1753052717745,4.32,3738.6,3738.1,0.1336]
[1753052718962,4.32,3738.5,3738.1,0.1336]
[1753052719768,0.1336,3738.7,3738.1,0.6017]
[1753052719933,4.32,3738.4,3738.3,0.1336]
[1753052720953,0.1336,3738.9,3738.3,0.1336]
[1753052721157,4.32,3738.8,3738.3,0.1336]
[1753052721966,6.99465823,3738.8,3738.3,0.1336]
[1753052722165,7.75217405,3738.8,3738.3,0.1336]
[1753052722374,5.07751582,3738.8,3738.3,0.1336]
[1753052723066,7.75217714,3738.8,3738.3,0.1336]
[1753052723279,2.67494115,3738.4,3738.3,0.1336]
[1753052723432,4.32,3738.4,3737.7,0.20450881]
[1753052723632,2.67513593,3738.2,3737.5,0.7638]
[1753052723832,2.67503039,3738.3,3737.5,0.7638]
[1753052724073,4.32,3738.2,3737.5,0.7638]
[1753052726391,2.67494329,3738.4,3737.5,0.7638]
[1753052726535,2.67509179,3738.2,3737.5,0.7638]
[1753052727353,6.99402321,3738.3,3737.5,0.7638]
[1753052727573,2.67510043,3738.2,3737.5,0.7638]
[1753052727879,2.67509535,3738.2,3737.5,0.7638]
[1753052728037,4.319,3738.3,3737.5,0.7638]
[1753052728237,0.4446,3738.1,3737.1,0.021]
[1753052728472,2.67578102,3737.3,3737.1,0.021]
[1753052728673,7.43940006,3737.2,3737.1,0.021]
[1753052728883,8.07150006,3737.2,3737.1,0.021]
[1753052729036,11.07150006,3737.2,3737.1,0.021]
[1753052731542,11.07150006,3737.2,3736.3,0.001]
[1753052731543,2.67637297,3736.4,3736.3,0.001]
[1753052731878,10.62747297,3736.4,3736.3,0.001]
[1753052732082,11.07207297,3736.4,3736.3,0.001]
[1753052736610,11.07207297,3736.4,3736.3,1e-08]
[1753052736813,2.67651624,3736.2,3736.1,1e-08]
[1753052737112,11.17861624,3736.2,3736.1,1e-08]
[1753052737299,11.62321624,3736.2,3736.1,1e-08]
[1753052737793,6.87815432,3736.2,3736.1,1e-08]
[1753052737993,11.19815432,3736.2,3736.1,1e-08]
[1753052738418,6.75321624,3736.2,3736.1,1e-08]
[1753052738587,2.67651624,3736.2,3736.1,1e-08]
[1753052738909,6.78747063,3737.1,3736.1,1e-08]
[1753052738910,2.67637605,3736.4,3736.1,1e-08]
[1753052739100,4.4536,3736.3,3736.1,1e-08]
[1753052739474,3.0,3736.2,3736.1,1e-08]
[1753052740089,5.67651624,3736.2,3736.1,1e-08]
[1753052740610,4.32,3736.2,3736.1,1e-08]
[1753052741314,6.99651624,3736.2,3736.1,1e-08]
[1753052742004,4.32,3736.2,3736.1,1e-08]
[1753052742914,6.99651624,3736.2,3736.1,1e-08]
[1753052743077,2.67651624,3736.2,3736.1,1e-08]
[1753052743277,6.99651624,3736.2,3736.1,1e-08]
[1753052743694,4.32,3736.2,3736.1,1e-08]
[1753052744096,6.99651624,3736.2,3736.1,1e-08]
[1753052744806,4.32,3736.2,3736.1,1e-08]
[1753052745610,6.99651624,3736.2,3736.1,1e-08]
[1753052746419,10.62861624,3736.2,3736.1,1e-08]
[1753052746616,11.07321624,3736.2,3736.1,1e-08]
[1753052746883,10.62861624,3736.2,3736.1,1e-08]
[1753052747219,11.07321624,3736.2,3736.1,1e-08]
[1753052748221,11.62321624,3736.2,3736.1,1e-08]
[1753052748600,11.07321624,3736.2,3736.1,1e-08]
[1753052749084,10.62861624,3736.2,3736.1,1e-08]
[1753052749484,11.07321624,3736.2,3736.1,1e-08]
[1753052750303,10.62861624,3736.2,3736.1,1e-08]
[1753052750507,3.0,3736.2,3736.1,1e-08]
[1753052751042,7.32,3736.2,3736.1,1e-08]
[1753052752024,4.32,3736.2,3736.1,0.42750001]
[1753052752613,3.1336,3736.5,3736.1,1e-08]
[1753052752930,0.55,3737.8,3736.3,0.766]
[1753052752931,4.32,3736.8,3736.3,0.766]
[1753052753128,4.32,3736.9,3736.5,0.766]
[1753052753422,4.32,3736.9,3736.7,0.1336]
[1753052753607,4.319,3736.9,3736.7,0.1336]
[1753052753810,4.319,3736.9,3736.8,0.4275]
[1753052754011,4.319,3736.9,3736.7,0.1336]
[1753052754193,4.319,3736.9,3736.5,0.766]
[1753052754386,6.99504348,3736.9,3736.5,0.766]
[1753052754781,4.319,3736.9,3736.5,0.766]
[1753052755025,6.99502835,3736.9,3736.5,0.766]
[1753052755321,4.319,3736.9,3736.5,0.766]
[1753052755487,4.319,3736.9,3736.5,1.1935]
[1753052755693,4.319,3736.9,3736.6,0.4275]
[1753052756799,4.319,3736.8,3736.6,0.4275]
[1753052756997,4.319,3736.8,3736.5,0.766]
[1753052757189,4.319,3736.8,3736.6,0.4275]
[1753052757387,4.319,3736.8,3736.5,0.766]
[1753052757637,4.319,3736.8,3736.6,0.4275]
[1753052758384,6.99509319,3736.8,3736.5,0.766]
[1753052758589,4.319,3736.8,3736.5,0.766]
[1753052759623,4.319,3736.8,3736.4,0.1336]
[1753052761107,4.319,3736.8,3736.5,0.4593]
[1753052761833,0.002,3736.9,3736.6,0.4593]
[1753052762125,4.318,3736.8,3736.7,0.9363]
[1753052762530,4.318,3736.8,3736.7,1.3956]
[1753052763131,0.002,3736.9,3736.7,1.3956]
[1753052763338,0.002,3736.9,3736.8,0.4593]
[1753052763542,0.002,3736.9,3736.8,0.6154323]
[1753052763895,0.002,3736.9,3736.8,4.14037965]
[1753052764097,0.002,3736.9,3736.8,1.4375323]
[1753052764300,0.002,3736.9,3736.8,4.11361879]
[1753052764829,0.002,3736.9,3736.8,4.69037965]
[1753052765134,0.002,3736.9,3736.8,4.66361879]
[1753052766534,0.002,3736.9,3736.8,1.4375323]
[1753052768529,0.002,3736.9,3736.8,0.8221]
[1753052768696,0.002,3736.9,3736.7,0.1336]
[1753052769331,2.67806762,3736.9,3736.7,0.1336]
[1753052769537,0.002,3736.9,3736.7,0.1336]
[1753052769942,2.67608649,3736.8,3736.7,0.1336]
[1753052770143,0.002,3736.9,3736.7,0.1336]
[1753052770435,2.67803423,3736.9,3736.7,0.1336]
[1753052770650,2.67801926,3736.9,3736.7,0.1336]
[1753052770947,2.67801522,3736.9,3736.7,0.1336]
[1753052771518,0.002,3736.9,3736.7,0.1336]
[1753052772135,0.002,3736.9,3736.8,0.08357609]
[1753052772335,0.002,3736.9,3736.8,0.08357598]
[1753052772738,0.002,3736.9,3736.8,0.54287598]
[1753052772935,0.002,3736.9,3736.8,1.2616]
[1753052773222,0.002,3736.9,3736.8,1.67142208]
[1753052773424,0.002,3736.9,3736.8,4.34750857]
[1753052773623,0.002,3736.9,3736.8,4.37426943]
[1753052773825,0.002,3736.9,3736.8,4.92426943]
[1753052775664,0.002,3737.6,3737.5,4.02748528]
[1753052775825,0.002,3737.6,3737.5,11.85453922]
[1753052776024,0.002,3737.6,3737.5,12.42068337]
[1753052776535,0.002,3738.6,3738.5,2.6748696]
[1753052776790,0.002,3738.6,3738.5,4.0334696]
[1753052777058,0.002,3738.6,3738.5,4.65311829]
[1753052777265,0.002,3738.6,3738.5,8.59016329]
[1753052777573,0.002,3739.4,3738.8,3.99775496]
[1753052777862,0.002,3739.4,3738.8,11.4721015]
[1753052778072,0.002,3739.4,3738.8,11.90465496]
[1753052778295,0.002,3739.4,3739.3,3.22429732]
[1753052778577,0.002,3739.4,3739.3,4.34657002]
[1753052778738,0.002,3739.4,3739.3,12.11887002]
[1753052778943,0.002,3739.4,3739.3,15.22020805]
[1753052779168,0.002,3739.4,3739.3,12.30922725]
[1753052779940,0.002,3739.4,3739.3,19.4041237]
[1753052780141,0.002,3739.4,3739.3,18.14759627]
[1753052780467,0.002,3739.4,3739.3,12.3540017]
[1753052780636,0.002,3739.4,3739.3,8.0410017]
[1753052780836,0.002,3739.4,3739.3,12.22472705]
[1753052781076,0.002,3739.4,3739.3,12.30822075]
[1753052781573,0.002,3739.4,3739.3,4.55482973]
[1753052781796,0.002,3739.4,3739.3,8.9503287]
[1753052782498,0.002,3739.4,3739.3,0.08349897]
[1753052782643,3.11402581,3739.4,3739.3,0.08349897]
[1753052783553,6.11402581,3739.4,3739.3,0.08349897]
[1753052783972,6.76812581,3739.4,3739.3,0.08349897]
[1753052784571,11.07812581,3739.4,3739.3,0.08349897]
[1753052784795,11.07812581,3739.4,3739.3,1e-08]
[1753052784948,11.62812581,3739.4,3739.3,1e-08]
[1753052785147,11.62812581,3739.4,3736.8,0.8049]
[1753052785148,2.6755959,3737.5,3736.8,0.8049]
[1753052785381,2.6755901,3737.5,3736.4,3.4812127]
[1753052785982,2.6754506,3737.7,3736.6,3.13552709]
[1753052786292,0.6541,3737.9,3736.7,0.02676158]
[1753052786454,6.98523096,3738.0,3737.1,0.4793]
[1753052786881,6.98523096,3738.0,3737.2,0.33786698]
[1753052787161,4.31,3738.0,3737.2,0.33786698]
[1753052787681,2.675321,3737.9,3737.1,0.4793]
[1753052788055,0.4378,3738.2,3737.1,0.02]
[1753052788398,0.002,3738.3,3737.4,0.7775]
[1753052788583,0.002,3738.3,3737.6,2.67544726]
[1753052788779,0.002,3738.3,3737.7,0.6895303]
[1753052789600,0.002,3738.3,3737.7,3.36496452]
[1753052789771,0.002,3738.3,3737.7,0.6895303]
[1753052790381,0.002,3738.3,3737.4,0.7775]
[1753052790583,0.4432,3738.2,3737.1,0.02]
[1753052790762,3.11831462,3738.2,3737.1,0.02]
[1753052790958,0.4432,3738.1,3737.1,0.02]
[1753052791158,2.67537218,3737.8,3737.1,0.02]
[1753052791359,7.42757218,3737.8,3737.1,0.02]
[1753052791699,4.7522,3737.8,3737.4,0.1336]
[1753052791997,0.4432,3737.7,3737.4,0.1336]
[1753052792198,2.67530711,3737.9,3737.4,0.1336]
[1753052792199,6.98430337,3737.9,3737.4,0.1336]
[1753052792703,2.67551601,3737.6,3737.4,0.1336]
[1753052792901,4.309,3737.9,3737.4,0.1336]
[1753052793197,4.309,3738.1,3737.4,0.1336]
[1753052793407,0.002,3738.3,3737.7,0.1336]
[1753052793564,0.002,3738.3,3737.4,3.47575581]
[1753052793565,0.002,3738.3,3738.0,0.1336]
[1753052794315,0.002,3738.3,3738.2,3.60878426]
[1753052794507,0.002,3738.3,3738.2,1.61201631]
[1753052794809,0.002,3738.3,3738.2,5.30950057]
[1753052794962,0.002,3738.3,3738.2,4.62590057]
[1753052795304,0.002,3738.3,3738.2,1.95081631]
[1753052795709,0.002,3738.3,3738.2,4.62590057]
[1753052796325,0.002,3738.3,3738.2,1.95081631]
[1753052796801,0.002,3738.3,3738.2,4.62590057]
[1753052797111,0.002,3738.3,3738.2,1.47841631]
[1753052797312,0.002,3738.3,3738.2,3.94758426]
[1753052797501,0.002,3738.3,3738.2,1.2725]
[1753052797807,0.002,3738.3,3738.2,3.94758426]
[1753052798209,0.002,3738.3,3738.2,0.8001]
[1753052798510,0.002,3738.3,3738.2,3.94758426]
[1753052798687,0.002,3738.3,3738.2,4.9125389]
[1753052800387,0.002,3738.3,3738.2,2.23745464]
[1753052800575,0.002,3738.3,3738.2,4.9125389]
[1753052801181,0.002,3738.3,3737.8,0.7682]
[1753052801377,0.002,3738.3,3737.9,0.08353646]
[1753052801577,0.002,3738.3,3738.0,0.08354053]
[1753052801774,0.002,3738.3,3738.1,0.11029208]
[1753052802076,0.002,3738.3,3738.2,0.08354053]
[1753052802273,0.002,3738.3,3738.2,0.4724]
[1753052802519,0.002,3738.3,3738.2,1.05735375]
[1753052802693,0.002,3738.3,3737.8,0.7682]
[1753052802897,0.4432,3738.2,3737.4,0.8207]
[1753052803095,2.67516211,3738.1,3737.1,0.02]
[1753052803305,3.11847667,3738.0,3737.1,0.02]
[1753052803490,0.4432,3738.0,3737.1,0.02]
[1753052803818,4.9621,3738.3,3737.3,2.67567608]
[1753052803989,4.9621,3738.3,3737.4,0.02675656]
[1753052804503,4.9621,3738.3,3737.6,0.001]
[1753052804504,0.6561,3738.3,3737.6,0.001]
[1753052804875,0.002,3738.3,3738.1,0.1336]
[1753052805888,0.002,3738.3,3738.2,0.02675084]
[1753052806087,0.002,3738.3,3738.2,3.58491073]
[1753052806333,0.002,3738.3,3738.2,0.88307563]
[1753052806627,0.002,3738.3,3738.2,0.41067563]
[1753052807123,0.002,3738.3,3738.1,0.1336]
[1753052809114,3.11829499,3738.2,3737.6,0.001]
[1753052809329,0.4432,3738.2,3737.8,0.1336]
[1753052809488,2.67706282,3738.3,3737.8,0.1336]
[1753052809694,0.4432,3738.2,3737.8,0.1336]
[1753052810033,0.4432,3738.1,3737.8,0.1336]
[1753052810643,0.002,3738.3,3737.6,0.001]
[1753052810843,0.4432,3738.2,3738.0,0.1336]
[1753052811047,0.002,3738.3,3737.7,0.1336]
[1753052811048,0.4432,3738.1,3737.7,0.1336]
[1753052811200,3.35095434,3738.3,3737.7,0.1336]
[1753052811521,0.4432,3738.2,3737.7,0.1336]
[1753052811721,0.4432,3738.1,3737.7,0.1336]
[1753052812018,0.002,3738.3,3737.6,0.001]
[1753052812235,0.002,3738.3,3738.0,0.1336]
[1753052813446,0.002,3738.3,3738.1,0.4724]
[1753052813736,0.002,3738.3,3738.2,2.8354351]
[1753052813911,0.002,3738.3,3738.2,3.98156532]
[1753052814493,0.002,3738.3,3738.2,1.30648106]
[1753052814831,0.002,3738.3,3738.2,0.1336]
[1753052815499,0.002,3738.3,3738.2,2.80868426]
[1753052815928,0.002,3738.3,3738.2,3.3078351]
[1753052816128,0.002,3738.3,3738.2,7.6452351]
[1753052816353,0.002,3738.3,3738.2,7.61848426]
[1753052816514,0.002,3739.3,3739.0,2.67444751]
[1753052816708,0.002,3739.3,3739.1,0.7874]
[1753052817053,0.002,3739.3,3739.2,0.1336]
[1753052819642,0.002,3739.3,3739.2,0.5952]
[1753052819946,0.002,3739.3,3739.2,4.07501252]
[1753052820127,0.002,3739.3,3739.2,8.29995516]
[1753052820316,0.002,3739.3,3739.2,12.57521148]
[1753052820724,0.002,3739.3,3739.2,1.58724264]
[1753052821347,0.002,3739.3,3739.2,4.26161148]
[1753052821555,0.002,3739.3,3739.2,1.78999462]
[1753052821758,0.002,3739.3,3739.2,0.1336]
[1753052821924,0.4484,3739.3,3738.4,0.8019]
[1753052822127,2.67441839,3739.2,3738.1,3.13671005]
[1753052822325,0.6541,3739.0,3737.4,0.8019]
[1753052822530,2.67514064,3738.2,3737.1,0.8403]
[1753052822729,3.3291127,3738.3,3737.1,0.8403]
[1753052822730,0.6541,3738.3,3737.1,0.8403]
[1753052822930,2.67524542,3738.0,3737.1,0.8403]
[1753052823140,3.32912266,3738.3,3737.1,0.8403]
[1753052823141,0.6541,3738.3,3737.1,0.8403]
[1753052823339,1.14951,3738.3,3737.1,0.8403]
[1753052823967,2.67508426,3738.2,3737.1,0.02]
[1753052824168,2.67544211,3737.7,3737.1,0.02]
[1753052824462,0.3527,3738.2,3737.1,0.02]
[1753052824665,2.67542767,3737.8,3737.1,0.02]
[1753052825029,2.67523873,3738.0,3737.1,0.02]
[1753052825232,0.6541,3738.3,3737.2,0.4616]
[1753052825551,3.32913639,3738.3,3737.3,0.02675728]
[1753052825754,2.67544211,3737.7,3737.3,0.02675728]
[1753052825953,6.32954211,3737.7,3737.1,0.02]
[1753052826152,6.68224211,3737.7,3737.1,0.02]
[1753052826537,3.68224211,3737.7,3737.1,0.02]
[1753052827338,10.98224211,3737.7,3737.1,0.02]
[1753052827669,2.67527657,3738.0,3737.1,0.02]
[1753052827871,4.301,3737.9,3737.1,0.02]
[1753052828038,0.6541,3738.1,3737.2,0.026758]
[1753052828239,4.3,3737.9,3737.1,0.02]
[1753052828972,2.67544211,3737.7,3737.1,0.02]
[1753052829341,3.02814211,3737.7,3737.1,0.02]
[1753052830573,6.02814211,3737.7,3737.6,1e-08]
[1753052830776,7.23224211,3737.7,3737.6,1e-08]
[1753052831644,6.68224211,3737.7,3737.6,1e-08]
[1753052831844,10.98224211,3737.7,3737.6,1e-08]
[1753052832581,0.6541,3739.2,3737.7,0.7566]
[1753052832785,0.6541,3739.2,3739.0,0.1336]
[1753052832943,2.67444037,3739.1,3739.0,0.1336]
[1753052833136,3.32853081,3739.2,3739.0,0.1336]
[1753052833388,3.32848494,3739.2,3738.6,0.1336]
[1753052833699,0.6541,3739.2,3738.6,0.1336]
[1753052833899,4.3,3739.1,3738.6,0.1336]
[1753052834243,4.3,3739.2,3738.6,0.5952]
[1753052834440,0.1356,3739.3,3738.6,0.5952]
[1753052834644,4.3,3739.2,3738.6,0.1336]
[1753052834838,0.6541,3738.8,3737.9,0.8111]
[1753052835043,4.3,3738.7,3738.4,0.1336]
[1753052835853,2.67482594,3738.6,3737.6,1e-08]
[1753052836057,7.10834207,3738.7,3738.1,0.1336]
[1753052836344,2.67481785,3738.6,3738.1,0.1336]
[1753052836695,4.4336,3738.7,3738.1,0.1336]
[1753052836841,4.39766,3739.2,3737.7,0.02675442]
[1753052837047,4.299,3738.8,3738.5,0.1336]
[1753052837247,0.1336,3739.1,3738.3,0.7642]
[1753052837248,4.299,3739.1,3738.3,0.7642]
[1753052837482,4.299,3739.1,3738.7,0.1336]
[1753052841072,4.298,3739.1,3738.7,0.1336]
[1753052841427,4.298,3739.2,3739.0,0.1336]